bitfinex/quotes_BTCUSD_20241021
["timestamp","ask_amount","ask_price","bid_price","bid_amount"]
[1729542060542,0.00064923,67718.0,67717.0,0.1808442]
[1729542060746,0.01672295,67718.0,67717.0,0.1808442]
[1729542062748,0.01672295,67718.0,67717.0,0.0281712]
[1729542062963,0.23810558,67718.0,67717.0,0.0281712]
[1729542063178,0.20766358,67718.0,67717.0,0.0281712]
[1729542063611,0.20766358,67718.0,67717.0,0.1758442]
[1729542064083,0.19382295,67718.0,67717.0,0.1758442]
[1729542066411,0.27408928,67718.0,67717.0,0.1758442]
[1729542067103,0.19518928,67718.0,67717.0,0.1758442]
[1729542067347,0.09698928,67718.0,67717.0,0.1758442]
[1729542067739,0.0831469,67718.0,67717.0,0.28203662]
[1729542067741,0.01672295,67718.0,67717.0,0.1758442]
[1729542069315,0.0610138,67718.0,67717.0,0.1758442]
[1729542069970,0.01672295,67718.0,67717.0,0.1758442]
[1729542070682,0.00064923,67718.0,67717.0,0.1758442]
[1729542071553,0.00064923,67718.0,67717.0,0.29359194]
[1729542071908,0.00064923,67718.0,67717.0,0.99359194]
[1729542072135,0.00064923,67718.0,67717.0,0.8758442]
[1729542074524,0.00064923,67718.0,67717.0,0.9538442]
[1729542074739,0.00064923,67718.0,67717.0,0.9588442]
[1729542076800,0.00064923,67718.0,67717.0,0.96826226]
[1729542080149,0.00064923,67718.0,67717.0,1.12222141]
[1729542080376,0.00064923,67718.0,67717.0,1.27118056]
[1729542080663,0.00064923,67718.0,67717.0,1.03980335]
[1729542081110,0.00064923,67718.0,67717.0,0.8858442]
[1729542081325,0.00064923,67718.0,67717.0,0.8808442]
[1729542084019,0.00064923,67718.0,67717.0,0.1808442]
[1729542087146,0.00064923,67718.0,67717.0,0.8808442]
[1729542089912,0.00064923,67718.0,67717.0,1.02980335]
[1729542090109,0.00064923,67718.0,67717.0,0.8808442]
[1729542090314,0.00064923,67718.0,67717.0,0.8828442]
[1729542091791,0.00064923,67718.0,67717.0,1.21350335]
[1729542092569,0.00064923,67718.0,67717.0,1.20150335]
[1729542092794,0.00064923,67718.0,67717.0,1.3394625]
[1729542093034,0.00064923,67718.0,67717.0,1.3624625]
[1729542093260,0.00064923,67718.0,67717.0,1.3514625]
[1729542093467,0.00064923,67718.0,67717.0,1.3394625]
[1729542093682,0.00064923,67718.0,67717.0,1.3674625]
[1729542103802,0.00064923,67718.0,67717.0,1.4674625]
[1729542109292,0.000827,67725.0,67724.0,0.162658]
[1729542109502,0.22207083,67725.0,67724.0,1.21868055]
[1729542109720,0.22207083,67725.0,67724.0,1.21668055]
[1729542109930,0.000827,67725.0,67724.0,1.21668055]
[1729542110139,0.000827,67725.0,67724.0,1.22219975]
[1729542111250,0.000827,67725.0,67724.0,1.23119975]
[1729542111661,0.000827,67725.0,67724.0,1.24119975]
[1729542113615,0.000827,67725.0,67724.0,1.23919975]
[1729542113826,0.000827,67725.0,67724.0,1.24119975]
[1729542114236,0.000827,67725.0,67724.0,1.25049597]
[1729542116377,0.000827,67725.0,67724.0,1.24849597]
[1729542116807,0.000827,67725.0,67724.0,1.42539597]
[1729542118077,0.000827,67725.0,67724.0,1.42739597]
[1729542120691,0.000827,67725.0,67724.0,1.24849597]
[1729542123037,0.000827,67725.0,67724.0,0.9701772]
[1729542123243,0.19589766,67725.0,67724.0,0.1701772]
[1729542123480,0.25398869,67725.0,67724.0,0.1701772]
[1729542123729,0.27611225,67725.0,67724.0,0.1701772]
[1729542124427,0.20974157,67725.0,67724.0,0.1601772]
[1729542124661,0.46160934,67725.0,67724.0,0.0035192]
[1729542124872,0.46160934,67725.0,67724.0,0.0075192]
[1729542125109,0.48375316,67725.0,67724.0,0.0075192]
[1729542125322,0.46160934,67725.0,67724.0,0.1511772]
[1729542125553,0.44776543,67725.0,67724.0,0.1511772]
[1729542125773,0.46159066,67725.0,67724.0,0.1521772]
[1729542127541,0.46159066,67725.0,67724.0,0.0045192]
[1729542127542,0.78033106,67725.0,67724.0,0.0045192]
[1729542127764,0.73790961,67725.0,67724.0,0.0045192]
[1729542128425,0.73790961,67725.0,67724.0,0.0035192]
[1729542129093,0.7019543,67725.0,67724.0,0.0035192]
[1729542129332,0.72406469,67725.0,67724.0,0.0035192]
[1729542129555,0.73788368,67725.0,67724.0,0.0035192]
[1729542130641,0.73778427,67725.0,67724.0,0.0035192]
[1729542132658,0.69169572,67725.0,67724.0,0.0035192]
[1729542133551,0.7800838,67725.0,67724.0,0.0035192]
[1729542133987,0.8021616,67725.0,67724.0,0.0035192]
[1729542134176,0.7800838,67725.0,67724.0,0.0035192]
[1729542134594,0.66958533,67725.0,67724.0,0.0035192]
[1729542135018,0.7800838,67725.0,67724.0,0.0035192]
[1729542135454,0.66958533,67725.0,67724.0,0.0035192]
[1729542135671,0.6694335,67725.0,67724.0,0.0035192]
[1729542136531,0.75775349,67725.0,67724.0,0.0035192]
[1729542139524,0.66940685,67725.0,67724.0,0.0035192]
[1729542140387,0.49251181,67725.0,67724.0,0.0035192]
[1729542140608,0.50630241,67725.0,67724.0,0.0035192]
[1729542141450,0.57252796,67725.0,67724.0,0.0035192]
[1729542142925,0.57752796,67725.0,67724.0,0.0035192]
[1729542143114,0.147662,67722.0,67721.0,0.001654]
[1729542143327,0.48811175,67722.0,67721.0,0.001654]
[1729542143534,0.57038803,67722.0,67721.0,0.001654]
[1729542143740,0.69419202,67722.0,67721.0,0.001654]
[1729542143953,0.78253866,67722.0,67721.0,0.001654]
[1729542144204,0.69419202,67722.0,67721.0,0.001654]
[1729542144592,0.7824673,67722.0,67721.0,0.001654]
[1729542148690,0.69419202,67722.0,67721.0,0.001654]
[1729542150353,0.7401833,67722.0,67721.0,0.001654]
[1729542150584,0.74007227,67722.0,67721.0,0.001654]
[1729542150996,0.74006513,67722.0,67721.0,0.001654]
[1729542151441,0.62141187,67722.0,67721.0,0.001654]
[1729542151659,0.60754192,67722.0,67721.0,0.001654]
[1729542151899,0.5773129,67722.0,67721.0,0.001654]
[1729542153114,0.82836597,67722.0,67721.0,0.001654]
[1729542155107,0.82841233,67722.0,67721.0,0.001654]
[1729542155309,0.74018907,67722.0,67721.0,0.001654]
[1729542155644,0.82842026,67722.0,67721.0,0.001654]
[1729542156538,0.6385348,67722.0,67721.0,0.001654]
[1729542157004,0.57235926,67722.0,67721.0,0.001654]
[1729542157419,0.6385348,67722.0,67721.0,0.001654]
[1729542158058,0.147671,67718.0,67717.0,0.001652]
[1729542158288,0.20751084,67718.0,67717.0,0.001652]
[1729542158500,0.22351839,67718.0,67717.0,0.001652]
[1729542158934,0.22352337,67718.0,67717.0,0.001652]
[1729542159144,0.23736712,67718.0,67717.0,0.001652]
[1729542159326,0.23736712,67718.0,67717.0,0.004652]
[1729542160416,0.28149179,67718.0,67717.0,0.004652]
[1729542160626,0.28149179,67718.0,67717.0,0.006652]
[1729542160828,0.26767326,67718.0,67717.0,0.006652]
[1729542161007,0.26767353,67718.0,67717.0,0.006652]
[1729542161187,0.22352394,67718.0,67717.0,0.006652]
[1729542162343,0.28974792,67718.0,67717.0,0.006652]
[1729542162551,0.28974792,67718.0,67717.0,0.003652]
[1729542162755,0.28974961,67718.0,67717.0,0.004652]
[1729542163627,0.38663111,67718.0,67717.0,0.002652]
[1729542165398,0.49700441,67718.0,67717.0,0.002652]
[1729542165590,0.38663111,67718.0,67717.0,0.002652]
[1729542165799,0.38677451,67718.0,67717.0,0.002652]
[1729542168775,0.40892817,67718.0,67717.0,0.002652]
[1729542169352,0.38677451,67718.0,67717.0,0.002652]
[1729542170040,0.38678078,67718.0,67717.0,0.002652]
[1729542170441,0.40894448,67718.0,67717.0,0.002652]
[1729542170690,0.54161658,67718.0,67717.0,0.002652]
[1729542170893,0.51992058,67718.0,67717.0,0.002652]
[1729542171104,0.54208428,67718.0,67717.0,0.002652]
[1729542172581,0.40920249,67718.0,67717.0,0.002652]
[1729542173471,0.50400249,67718.0,67717.0,0.002652]
[1729542176174,0.50408063,67718.0,67717.0,0.002652]
[1729542177154,0.5040982,67718.0,67717.0,0.002652]
[1729542180164,0.23945269,67718.0,67717.0,0.150325]
[1729542180810,0.22559362,67718.0,67717.0,0.150325]
[1729542181027,0.23945269,67718.0,67717.0,0.149325]
[1729542181239,0.23945269,67718.0,67717.0,0.150325]
[1729542181867,0.23945269,67718.0,67717.0,0.149325]
[1729542182095,0.23945269,67718.0,67717.0,0.150325]
[1729542183417,0.22559362,67718.0,67717.0,0.002652]
[1729542183659,0.55271779,67718.0,67717.0,0.002652]
[1729542183919,0.68567746,67718.0,67717.0,0.002652]
[1729542184097,0.57488287,67718.0,67717.0,0.002652]
[1729542184558,0.70169446,67718.0,67717.0,0.002652]
[1729542184795,0.72385954,67718.0,67717.0,0.002652]
[1729542190508,0.68784129,67718.0,67717.0,0.002652]
[1729542190712,0.72385995,67718.0,67717.0,0.002652]
[1729542197795,0.68784129,67718.0,67717.0,0.002652]
[1729542198031,0.72385811,67718.0,67717.0,0.002652]
[1729542201700,0.72385743,67718.0,67717.0,0.002652]
[1729542204937,0.72391826,67718.0,67717.0,0.002652]
[1729542205394,0.68790212,67718.0,67717.0,0.002652]
[1729542205804,0.72391777,67718.0,67717.0,0.002652]
[1729542207582,0.26168762,67718.0,67717.0,0.150325]
[1729542207789,0.37252484,67718.0,67717.0,0.150325]
[1729542209870,0.37249611,67718.0,67717.0,0.150325]
[1729542211003,0.3724902,67718.0,67717.0,0.150325]
[1729542212630,0.35863803,67718.0,67717.0,0.150325]
[1729542212843,0.3724915,67718.0,67717.0,0.150325]
[1729542213079,0.23950177,67718.0,67717.0,0.150325]
[1729542215494,0.30429189,67718.0,67717.0,0.241825]
[1729542215705,0.19350073,67718.0,67717.0,0.241825]
[1729542215972,0.28213036,67718.0,67717.0,0.29403792]
[1729542216250,0.09633015,67718.0,67717.0,0.321725]
[1729542216503,0.06031212,67718.0,67717.0,0.320725]
[1729542216987,0.06031212,67718.0,67717.0,0.326725]
[1729542217235,0.01600755,67718.0,67717.0,0.326725]
[1729542217476,0.000827,67721.0,67720.0,0.147666]
[1729542217940,0.01687359,67721.0,67720.0,0.147666]
[1729542218157,0.000827,67721.0,67720.0,0.147666]
[1729542218606,0.01687359,67721.0,67720.0,0.154666]
[1729542218846,0.01687359,67721.0,67720.0,0.4215057]
[1729542218847,0.000827,67721.0,67720.0,0.4215057]
[1729542219755,0.000827,67721.0,67720.0,0.4255057]
[1729542219979,0.000827,67721.0,67720.0,0.4145057]
[1729542221141,0.000827,67721.0,67720.0,0.4275057]
[1729542221370,0.000827,67721.0,67720.0,0.347666]
[1729542221605,0.000827,67721.0,67720.0,1.047666]
[1729542223742,0.000827,67721.0,67720.0,0.347666]
[1729542224196,0.000827,67721.0,67720.0,0.173666]
[1729542227307,0.000827,67721.0,67720.0,0.873666]
[1729542228168,0.000827,67721.0,67720.0,1.02262515]
[1729542230337,0.000827,67721.0,67720.0,0.873666]
[1729542230546,0.000827,67721.0,67720.0,0.173666]
[1729542248186,0.000827,67721.0,67720.0,0.17532]
[1729542251142,0.000827,67721.0,67720.0,0.87532]
[1729542262679,0.22124383,67727.0,67725.0,0.29531]
[1729542262907,0.22124383,67727.0,67726.0,0.147653]
[1729542263105,0.04432534,67729.0,67728.0,0.147649]
[1729542263396,0.16523187,67734.0,67731.0,0.147641]
[1729542263604,0.31419102,67734.0,67731.0,0.147641]
[1729542263787,0.14895915,67734.0,67731.0,0.147641]
[1729542265245,0.14895915,67734.0,67732.0,0.147639]
[1729542265462,0.083227,67735.0,67734.0,0.147636]
[1729542265682,0.000827,67735.0,67734.0,0.147636]
[1729542266351,0.000827,67735.0,67734.0,0.22971916]
[1729542266567,0.000827,67735.0,67734.0,0.39367831]
[1729542266746,0.000827,67740.0,67739.0,0.152625]
[1729542266971,0.000827,67740.0,67739.0,0.29005162]
[1729542267429,0.000827,67740.0,67739.0,0.44901077]
[1729542267907,0.000827,67740.0,67739.0,1.14901077]
[1729542268128,0.000827,67740.0,67739.0,1.15101077]
[1729542268371,0.000827,67746.0,67745.0,0.152612]
[1729542268600,0.22124383,67763.0,67751.0,0.147599]
[1729542269060,0.22124383,67763.0,67762.0,0.147575]
[1729542269284,0.23735144,67763.0,67762.0,0.147575]
[1729542269504,0.01610761,67763.0,67762.0,0.147575]
[1729542269754,0.000827,67768.0,67765.0,0.147568]
[1729542271141,0.0171216,67766.0,67765.0,0.153568]
[1729542271390,0.000827,67766.0,67765.0,0.153568]
[1729542271627,0.0171216,67766.0,67765.0,0.153568]
[1729542272336,0.0171216,67766.0,67765.0,0.159568]
[1729542274365,0.0171216,67766.0,67765.0,0.012]
[1729542274595,0.0171216,67766.0,67765.0,0.159568]
[1729542275275,0.000827,67766.0,67765.0,0.159568]
[1729542280411,0.000827,67766.0,67765.0,0.234554]
[1729542282253,0.000827,67766.0,67765.0,0.228554]
[1729542283429,0.000827,67766.0,67765.0,0.238554]
[1729542283846,0.000827,67766.0,67765.0,0.922554]
[1729542284082,0.000827,67766.0,67765.0,0.929554]
[1729542284322,0.000827,67766.0,67765.0,0.939554]
[1729542284637,0.000827,67766.0,67765.0,0.929554]
[1729542285056,0.000827,67766.0,67765.0,0.936554]
[1729542297156,0.000827,67766.0,67765.0,0.236554]
[1729542297399,0.000827,67766.0,67765.0,0.161568]
[1729542299303,0.01463629,67766.0,67765.0,0.161568]
[1729542299770,0.000827,67766.0,67765.0,0.161568]
[1729542300215,0.01467521,67766.0,67765.0,0.161568]
[1729542301631,0.01467521,67766.0,67765.0,0.861568]
[1729542303718,0.000827,67766.0,67765.0,0.861568]
[1729542303963,0.01467611,67766.0,67765.0,0.861568]
[1729542308225,0.01467611,67766.0,67765.0,0.161568]
[1729542310989,0.01467761,67766.0,67765.0,0.161568]
[1729542311206,0.01467761,67766.0,67765.0,0.861568]
[1729542311818,0.01467761,67766.0,67765.0,1.01052715]
[1729542312019,0.01467761,67766.0,67765.0,1.10162715]
[1729542313423,0.01467761,67766.0,67765.0,0.952668]
[1729542314524,0.05893329,67766.0,67765.0,0.952668]
[1729542315352,0.01467761,67766.0,67765.0,0.952668]
[1729542317393,0.05899625,67766.0,67765.0,0.252668]
[1729542317661,0.05899646,67766.0,67765.0,0.161568]
[1729542317861,0.07428739,67766.0,67765.0,0.161568]
[1729542318626,0.01611793,67766.0,67765.0,0.161568]
[1729542319304,0.05899815,67766.0,67765.0,0.161568]
[1729542319526,0.02997331,67766.0,67765.0,0.161568]
[1729542319760,0.07429216,67766.0,67765.0,0.161568]
[1729542320020,0.07429216,67766.0,67765.0,0.154568]
[1729542320446,0.07429216,67766.0,67765.0,0.164568]
[1729542320654,0.07429216,67766.0,67765.0,0.864568]
[1729542321070,0.05899779,67766.0,67765.0,0.864568]
[1729542321939,0.05899779,67766.0,67765.0,0.857568]
[1729542322296,0.04514585,67766.0,67765.0,0.867568]
[1729542322381,0.05899743,67766.0,67765.0,0.867568]
[1729542322733,0.05899943,67766.0,67765.0,0.867568]
[1729542323387,0.01467858,67766.0,67765.0,0.867568]
[1729542323805,0.01467858,67766.0,67765.0,0.96723121]
[1729542325531,0.01467858,67766.0,67765.0,0.26723121]
[1729542325779,0.01612137,67766.0,67765.0,0.26723121]
[1729542326154,0.0299728,67766.0,67765.0,0.26723121]
[1729542326357,0.02997276,67766.0,67765.0,0.26723121]
[1729542327133,0.0742954,67766.0,67765.0,0.167568]
[1729542327759,0.0742953,67766.0,67765.0,0.167568]
[1729542327976,0.01612137,67766.0,67765.0,0.167568]
[1729542328427,0.000827,67766.0,67765.0,0.157568]
[1729542328650,0.000827,67766.0,67765.0,0.170568]
[1729542328867,0.01612137,67766.0,67765.0,0.160568]
[1729542329091,0.07429426,67766.0,67765.0,0.873568]
[1729542329533,0.05899995,67766.0,67765.0,0.873568]
[1729542329804,0.05899995,67766.0,67765.0,1.3519863]
[1729542330049,0.000827,67766.0,67765.0,1.3519863]
[1729542330686,0.000827,67766.0,67765.0,1.34842675]
[1729542330911,0.000827,67766.0,67765.0,1.35042675]
[1729542331336,0.000827,67766.0,67765.0,1.33742675]
[1729542331752,0.000827,67766.0,67765.0,1.35142675]
[1729542331965,0.000827,67766.0,67765.0,1.36542675]
[1729542333834,0.000827,67766.0,67765.0,1.36342675]
[1729542335548,0.000827,67766.0,67765.0,1.37342675]
[1729542336162,0.000827,67766.0,67765.0,1.37542675]
[1729542336371,0.000827,67766.0,67765.0,1.37342675]
[1729542337405,0.000827,67766.0,67765.0,0.67342675]
[1729542338359,0.000827,67766.0,67765.0,0.66342675]
[1729542338573,0.000827,67766.0,67765.0,0.67342675]
[1729542340433,0.000827,67766.0,67765.0,1.37342675]
[1729542340638,0.000827,67766.0,67765.0,1.13222715]
[1729542340841,0.000827,67766.0,67765.0,0.880568]
[1729542344210,0.000827,67766.0,67765.0,0.875568]
[1729542344418,0.000827,67766.0,67765.0,0.880568]
[1729542347751,0.000827,67766.0,67765.0,0.875568]
[1729542348457,0.000827,67766.0,67765.0,0.175568]
[1729542352836,0.078527,67766.0,67765.0,0.175568]
[1729542353063,0.09384192,67766.0,67765.0,0.175568]
[1729542353471,0.10767743,67766.0,67765.0,0.175568]
[1729542353649,0.09384192,67766.0,67765.0,0.175568]
[1729542353844,0.10767743,67766.0,67765.0,0.175568]
[1729542354071,0.09384192,67766.0,67765.0,0.175568]
[1729542354293,0.10767743,67766.0,67765.0,0.175568]
[1729542354504,0.09384192,67766.0,67765.0,0.175568]
[1729542354755,0.10767735,67766.0,67765.0,0.175568]
[1729542354924,0.09384192,67766.0,67765.0,0.175568]
[1729542355108,0.10767735,67766.0,67765.0,0.175568]
[1729542355312,0.09384192,67766.0,67765.0,0.175568]
[1729542355518,0.10767735,67766.0,67765.0,0.175568]
[1729542355721,0.09384192,67766.0,67765.0,0.175568]
[1729542355924,0.10767735,67766.0,67765.0,0.175568]
[1729542356122,0.09384192,67766.0,67765.0,0.175568]
[1729542356308,0.10767735,67766.0,67765.0,0.175568]
[1729542356978,0.10767735,67766.0,67765.0,0.161568]
[1729542357451,0.10767735,67766.0,67765.0,0.169568]
[1729542357694,0.10767735,67766.0,67765.0,0.155568]
[1729542357917,0.10767735,67766.0,67765.0,0.163568]
[1729542358415,0.10767651,67766.0,67765.0,0.163568]
[1729542358638,0.09384192,67766.0,67765.0,0.163568]
[1729542358871,0.10767671,67766.0,67765.0,0.163568]
[1729542361691,0.09384192,67766.0,67765.0,0.163568]
[1729542361946,0.10767671,67766.0,67765.0,0.163568]
[1729542362178,0.09384192,67766.0,67765.0,0.163568]
[1729542362639,0.10767671,67766.0,67765.0,0.163568]
[1729542362862,0.09384192,67766.0,67765.0,0.163568]
[1729542363088,0.10767671,67766.0,67765.0,0.163568]
[1729542363315,0.09384192,67766.0,67765.0,0.163568]
[1729542363569,0.20007671,67766.0,67765.0,0.016]
[1729542363827,0.71111659,67766.0,67765.0,0.016]
[1729542364084,0.147588,67756.0,67751.0,0.147598]
[1729542364332,0.147586,67757.0,67756.0,0.22124383]
[1729542364563,0.08849334,67758.0,67752.0,0.295191]
[1729542364809,0.01382181,67757.0,67756.0,0.147588]
[1729542365759,0.18362181,67757.0,67756.0,0.004]
[1729542365999,0.1988878,67757.0,67756.0,0.004]
[1729542366713,0.1988878,67757.0,67756.0,0.007]
[1729542367377,0.24309935,67757.0,67756.0,0.007]
[1729542368036,0.24308344,67757.0,67756.0,0.007]
[1729542368267,0.19887189,67757.0,67756.0,0.007]
[1729542370493,0.34645789,67757.0,67756.0,0.007]
[1729542371757,0.19887189,67757.0,67756.0,0.007]
[1729542371968,0.18506599,67757.0,67756.0,0.007]
[1729542372179,0.19887189,67757.0,67756.0,0.007]
[1729542372390,0.48161114,67757.0,67756.0,0.007]
[1729542372609,0.66342459,67757.0,67756.0,0.007]
[1729542372815,0.73149204,67757.0,67756.0,0.007]
[1729542373052,0.147608,67747.0,67740.0,0.22124383]
[1729542373305,0.38267771,67747.0,67740.0,0.22124383]
[1729542373498,0.37467855,67747.0,67740.0,0.22124383]
[1729542373727,0.37467855,67747.0,67739.0,0.147625]
[1729542374805,0.37767855,67747.0,67739.0,0.147625]
[1729542375222,0.38167855,67747.0,67737.0,0.295258]
[1729542375496,0.35960535,67747.0,67740.0,0.147622]
[1729542375711,0.64561677,67747.0,67722.0,0.22124383]
[1729542375928,0.64561677,67747.0,67732.0,0.22124383]
[1729542375929,0.98966038,67747.0,67732.0,0.22124383]
[1729542376163,0.319338,67733.0,67732.0,0.22124383]
[1729542376383,0.50415532,67733.0,67732.0,0.22124383]
[1729542376605,0.35651732,67733.0,67722.0,0.22124383]
[1729542376824,0.147656,67725.0,67722.0,0.22124383]
[1729542377036,0.147656,67725.0,67720.0,0.001654]
[1729542377506,0.01409145,67724.0,67720.0,0.149319]
[1729542377708,0.01409145,67724.0,67722.0,0.001]
[1729542378376,0.147655,67726.0,67720.0,0.001654]
[1729542378585,0.01409145,67723.0,67720.0,0.001654]
[1729542378787,0.147655,67726.0,67722.0,0.002]
[1729542379197,0.147656,67725.0,67722.0,0.002]
[1729542379621,0.22124383,67731.0,67720.0,0.002654]
[1729542379860,0.442941,67729.0,67720.0,0.150319]
[1729542380062,0.16271192,67728.0,67722.0,0.001]
[1729542380268,0.147653,67726.0,67722.0,0.001]
[1729542380731,0.442954,67727.0,67722.0,0.001]
[1729542380966,0.01385876,67725.0,67722.0,0.001]
[1729542381222,0.01385876,67725.0,67720.0,0.001654]
[1729542381223,0.147654,67726.0,67720.0,0.001654]
[1729542381459,0.01385876,67724.0,67722.0,0.001]
[1729542381704,0.01385876,67724.0,67720.0,0.149319]
[1729542381944,0.01385876,67723.0,67720.0,0.149319]
[1729542382406,0.147654,67726.0,67721.0,0.147664]
[1729542382645,0.01385876,67722.0,67721.0,0.147664]
[1729542382881,0.147654,67726.0,67720.0,0.001654]
[1729542382882,0.147664,67721.0,67720.0,0.001654]
[1729542383649,0.16152107,67721.0,67720.0,0.001654]
[1729542384392,0.16252107,67721.0,67720.0,0.010654]
[1729542384633,0.16252107,67721.0,67720.0,0.007654]
[1729542384869,0.16252107,67721.0,67720.0,0.012654]
[1729542385830,0.61222405,67721.0,67720.0,0.012654]
[1729542386061,0.49028022,67721.0,67720.0,0.012654]
[1729542386306,0.51902401,67721.0,67720.0,0.012654]
[1729542386538,0.54101197,67721.0,67720.0,0.012654]
[1729542386796,0.54001197,67721.0,67720.0,0.006654]
[1729542387303,1.92671197,67721.0,67720.0,0.002654]
[1729542387573,1.90171197,67721.0,67720.0,0.003654]
[1729542387797,1.90271197,67721.0,67720.0,0.002654]
[1729542388042,1.90571197,67721.0,67720.0,0.002654]
[1729542388308,1.91771197,67721.0,67720.0,0.003654]
[1729542388545,1.91771197,67721.0,67720.0,0.002654]
[1729542388779,1.92571197,67721.0,67720.0,0.003654]
[1729542389023,1.91371197,67721.0,67720.0,0.002654]
[1729542389513,1.90271197,67721.0,67720.0,0.001654]
[1729542389758,1.90870199,67721.0,67720.0,0.002654]
[1729542390205,1.90270199,67721.0,67720.0,0.001654]
[1729542390428,1.91870199,67721.0,67720.0,0.003654]
[1729542390653,1.90070199,67721.0,67720.0,0.002654]
[1729542390926,0.65400199,67721.0,67720.0,0.003654]
[1729542391157,0.64000199,67721.0,67720.0,0.001654]
[1729542391596,0.65000199,67721.0,67720.0,0.002654]
[1729542391846,0.63000199,67721.0,67720.0,0.001654]
[1729542392365,0.64300199,67721.0,67720.0,0.002654]
[1729542392604,0.64600199,67721.0,67720.0,0.003654]
[1729542392834,0.65100199,67721.0,67720.0,0.003654]
[1729542393038,0.64300199,67721.0,67720.0,0.002654]
[1729542393276,0.63800199,67721.0,67720.0,0.003654]
[1729542393545,0.64500199,67721.0,67720.0,0.003654]
[1729542393780,0.41872859,67721.0,67720.0,0.003654]
[1729542394030,0.19026944,67721.0,67720.0,0.003654]
[1729542394268,0.17652107,67721.0,67720.0,0.003654]
[1729542394477,0.19027022,67721.0,67720.0,0.003654]
[1729542395417,0.17652107,67721.0,67720.0,0.003654]
[1729542396475,0.19027744,67721.0,67720.0,0.003654]
[1729542396917,0.19027744,67721.0,67720.0,0.15132]
[1729542396918,0.02885707,67721.0,67720.0,0.15132]
[1729542397162,0.015,67721.0,67720.0,0.15132]
[1729542398031,0.007,67721.0,67720.0,0.15032]
[1729542398238,0.007,67721.0,67720.0,0.16032]
[1729542398560,0.008,67721.0,67720.0,0.16032]
[1729542399083,0.007,67721.0,67720.0,0.15032]
[1729542399305,0.22124383,67730.0,67723.0,0.295319]
[1729542399526,0.01380491,67729.0,67724.0,0.295316]
[1729542399752,0.22124383,67730.0,67725.0,0.147655]
[1729542399987,0.147639,67733.0,67725.0,0.29531]
[1729542400225,0.01380491,67729.0,67725.0,0.147655]
[1729542400489,0.147643,67731.0,67725.0,0.147655]
[1729542400924,0.01380491,67730.0,67725.0,0.147655]
[1729542401145,0.01380491,67730.0,67725.0,0.151655]
[1729542401371,0.01380491,67730.0,67725.0,0.147655]
[1729542401598,0.001,67729.0,67725.0,0.154655]
[1729542401822,0.01480491,67729.0,67725.0,0.147655]
[1729542402047,0.001,67729.0,67725.0,0.002]
[1729542402286,0.01380491,67728.0,67727.0,0.147651]
[1729542402499,0.001,67729.0,67728.0,0.147649]
[1729542402974,0.002,67729.0,67728.0,0.147649]
[1729542403435,0.147637,67734.0,67728.0,0.147649]
[1729542403665,0.01377098,67733.0,67728.0,0.147649]
[1729542403913,0.002,67729.0,67728.0,0.155649]
[1729542404137,0.002,67729.0,67728.0,0.008]
[1729542404351,0.002,67729.0,67728.0,0.015]
[1729542404352,0.01680491,67729.0,67728.0,0.015]
[1729542404580,0.01477098,67729.0,67728.0,0.155649]
[1729542404837,0.01480491,67729.0,67728.0,0.158649]
[1729542405063,0.01380491,67729.0,67728.0,0.147649]
[1729542405291,0.01380175,67733.0,67731.0,0.147641]
[1729542405508,0.01380175,67732.0,67731.0,0.147641]
[1729542405945,0.02760666,67732.0,67731.0,0.147641]
[1729542406896,0.02760666,67732.0,67731.0,0.005]
[1729542407344,0.02760666,67732.0,67731.0,0.009]
[1729542409502,0.01380491,67732.0,67731.0,0.009]
[1729542409722,0.02760666,67732.0,67731.0,0.009]
[1729542409965,0.01380491,67732.0,67731.0,0.009]
[1729542410394,0.01380175,67734.0,67731.0,0.009]
[1729542410658,0.01380491,67732.0,67731.0,0.009]
[1729542410886,0.01380175,67734.0,67731.0,0.009]
[1729542411099,0.01380491,67732.0,67731.0,0.009]
[1729542411298,0.01380175,67734.0,67731.0,0.004]
[1729542411565,0.01380175,67733.0,67731.0,0.004]
[1729542411788,0.01380491,67733.0,67731.0,0.007]
[1729542411968,0.02760666,67733.0,67731.0,0.007]
[1729542412198,0.01380491,67733.0,67731.0,0.007]
[1729542412604,0.01380491,67733.0,67731.0,0.004]
[1729542413128,0.01380491,67733.0,67731.0,0.007]
[1729542413752,0.16143575,67735.0,67731.0,0.007]
[1729542413927,0.01385088,67732.0,67731.0,0.007]
[1729542414139,0.147639,67733.0,67731.0,0.007]
[1729542414339,0.16149088,67732.0,67731.0,0.007]
[1729542414548,0.32425178,67732.0,67731.0,0.003]
[1729542414865,0.32425178,67732.0,67731.0,0.005]
[1729542415077,0.37025134,67732.0,67731.0,0.005]
[1729542415281,0.37025134,67732.0,67731.0,0.003]
[1729542415282,0.32425178,67732.0,67731.0,0.003]
[1729542415704,0.32525178,67732.0,67731.0,0.003]
[1729542415916,0.16381003,67732.0,67720.0,0.14932]
[1729542416121,0.31045003,67732.0,67731.0,0.004]
[1729542416320,0.17660557,67732.0,67720.0,0.14932]
[1729542416549,0.147655,67725.0,67720.0,0.14932]
[1729542416754,0.16155536,67724.0,67720.0,0.14932]
[1729542417373,0.16155536,67724.0,67720.0,0.001654]
[1729542417611,0.16155536,67724.0,67721.0,0.147664]
[1729542418044,0.01389636,67724.0,67721.0,0.147664]
[1729542418718,0.16155536,67724.0,67720.0,0.15032]
[1729542418908,0.147662,67722.0,67721.0,0.003]
[1729542419113,0.147661,67723.0,67721.0,0.003]
[1729542419317,0.01389636,67722.0,67721.0,0.003]
[1729542419541,0.01389636,67722.0,67720.0,0.003654]
[1729542419542,0.147659,67724.0,67720.0,0.15132]
[1729542419735,0.01389636,67723.0,67720.0,0.15132]
[1729542419950,0.01389636,67723.0,67721.0,0.147664]
[1729542420099,0.01389636,67723.0,67720.0,0.14932]
[1729542420314,0.01389636,67723.0,67721.0,0.151664]
[1729542420514,0.147656,67725.0,67721.0,0.151664]
[1729542420711,0.01389636,67724.0,67721.0,0.147664]
[1729542421320,0.02770435,67724.0,67721.0,0.147664]
[1729542421715,0.147662,67723.0,67720.0,0.004654]
[1729542421896,0.01380799,67723.0,67720.0,0.15232]
[1729542422109,0.01389636,67722.0,67720.0,0.14932]